[Event "MČR družstev mladších žáků 2024"]
[Site "Harrachov, Czech Republic"]
[Date "2024.06.14"]
[Round "1.3"]
[White "Filip Damian"]
[Black "Bucek Vit"]
[Result "0-1"]
[TimeControl "25+10"]
[WhiteFideId "23755415"]
[BlackFideId "23750812"]
[WhiteElo "1196"]
[BlackElo "1582"]

1. e4 {[%clk 00:25:18]} c5 {[%clk 00:25:19]} {[%emt 00:00:01]} 2. Nf3 {[%clk
00:25:26]} {[%emt 00:00:02]} Nc6 {[%clk 00:25:27]} {[%emt 00:00:02]} 3. c3
{[%clk 00:25:35]} {[%emt 00:00:01]} Nf6 {[%clk 00:25:34]} {[%emt 00:00:03]} 4.
e5 {[%clk 00:25:44]} {[%emt 00:00:01]} Nd5 {[%clk 00:25:42]} {[%emt 00:00:02]}
5. d4 {[%clk 00:25:51]} {[%emt 00:00:02]} cxd4 {[%clk 00:25:50]} {[%emt
00:00:02]} 6. cxd4 {[%clk 00:26:00]} {[%emt 00:00:02]} e6 {[%clk 00:25:59]}
{[%emt 00:00:01]} 7. Bc4 {[%clk 00:25:26]} {[%emt 00:00:44]} Nb6 {[%clk
00:25:44]} {[%emt 00:00:25]} 8. Bb3 {[%clk 00:25:30]} {[%emt 00:00:06]} d6
{[%clk 00:24:44]} {[%emt 00:01:10]} 9. O-O {[%clk 00:24:53]} {[%emt 00:00:47]}
Be7 {[%clk 00:23:47]} {[%emt 00:01:07]} 10. Nc3 {[%clk 00:23:50]} {[%emt
00:01:14]} d5 {[%clk 00:22:38]} {[%emt 00:01:19]} 11. Bf4 {[%clk 00:21:31]}
{[%emt 00:02:29]} a6 {[%clk 00:22:15]} {[%emt 00:00:32]} 12. Qe2 {[%clk
00:20:06]} {[%emt 00:01:36]} O-O {[%clk 00:21:29]} {[%emt 00:00:57]} 13. Rfd1
{[%clk 00:18:10]} {[%emt 00:02:05]} Bd7 {[%clk 00:21:03]} {[%emt 00:00:36]} 14.
Rac1 {[%clk 00:18:08]} {[%emt 00:00:12]} Rc8 {[%clk 00:20:48]} {[%emt
00:00:21]} 15. Bg3 {[%clk 00:17:24]} {[%emt 00:00:58]} Na5 {[%clk 00:16:09]}
{[%emt 00:04:47]} 16. Bc2 {[%clk 00:13:44]} {[%emt 00:03:53]} Nac4 {[%clk
00:15:58]} {[%emt 00:00:18]} 17. h3 {[%clk 00:12:29]} {[%emt 00:01:27]} Nxb2
{[%clk 00:15:59]} {[%emt 00:00:09]} 18. Bxh7+ {[%clk 00:12:32]} {[%emt
00:00:07]} Kxh7 {[%clk 00:16:02]} {[%emt 00:00:07]} 19. Qxb2 {[%clk 00:12:35]}
{[%emt 00:00:07]} Kg8 {[%clk 00:14:54]} {[%emt 00:01:16]} 20. Ne2 {[%clk
00:12:26]} {[%emt 00:00:20]} Bb5 {[%clk 00:14:17]} {[%emt 00:00:47]} 21. Nf4
{[%clk 00:09:28]} {[%emt 00:03:09]} Nc4 {[%clk 00:13:38]} {[%emt 00:00:47]} 22.
Qb1 {[%clk 00:03:53]} {[%emt 00:05:45]} Qa5 {[%clk 00:09:15]} {[%emt 00:04:25]}
23. Nd3 {[%clk 00:00:32]} {[%emt 00:03:39]} Ba3 {[%clk 00:07:18]} {[%emt
00:02:06]} 0-1



[ePGN "0.1;DGT LiveChess/2.2.6"]

[Event "MČR družstev mladších žáků 2024"]
[Site "Harrachov, Czech Republic"]
[Date "2024.06.14"]
[Round "1.4"]
[White "Kozusnik Jan"]
[Black "Pokorny Petr"]
[Result "0-1"]
[TimeControl "25+10"]
[WhiteFideId "23731796"]
[WhiteElo "1345"]
[BlackElo "1040"]

1. e4 {[%clk 00:25:18]} {[%emt 00:00:01]} d5 {[%clk 00:25:18]} {[%emt
00:00:03]} 2. exd5 {[%clk 00:25:26]} {[%emt 00:00:02]} Qxd5 {[%clk 00:25:24]}
{[%emt 00:00:03]} 3. Nc3 {[%clk 00:25:35]} {[%emt 00:00:02]} Qa5 {[%clk
00:25:30]} {[%emt 00:00:04]} 4. d4 {[%clk 00:25:44]} {[%emt 00:00:02]} Nf6
{[%clk 00:25:33]} {[%emt 00:00:07]} 5. Nf3 {[%clk 00:25:33]} {[%emt 00:00:21]}
Bg4 {[%clk 00:25:29]} {[%emt 00:00:14]} 6. h3 {[%clk 00:25:33]} {[%emt
00:00:10]} Bh5 {[%clk 00:25:16]} {[%emt 00:00:23]} 7. Be2 {[%clk 00:23:26]}
{[%emt 00:02:16]} e6 {[%clk 00:25:00]} {[%emt 00:00:26]} 8. Bd2 {[%clk
00:22:15]} {[%emt 00:01:20]} c6 {[%clk 00:23:35]} {[%emt 00:01:35]} 9. O-O
{[%clk 00:20:35]} {[%emt 00:01:50]} Be7 {[%clk 00:23:08]} {[%emt 00:00:38]} 10.
Ne5 {[%clk 00:18:17]} {[%emt 00:02:28]} Bxe2 {[%clk 00:22:19]} {[%emt
00:00:58]} 11. Qxe2 {[%clk 00:18:24]} {[%emt 00:00:02]} O-O {[%clk 00:21:34]}
{[%emt 00:00:55]} 12. Ne4 {[%clk 00:08:53]} {[%emt 00:09:42]} Qb6 {[%clk
00:17:10]} {[%emt 00:04:23]} 13. c3 {[%clk 00:08:04]} {[%emt 00:01:10]} Nxe4
{[%clk 00:16:21]} {[%emt 00:00:58]} 14. Qxe4 {[%clk 00:06:05]} {[%emt
00:02:08]} Qxb2 {[%clk 00:15:11]} {[%emt 00:01:20]} 15. Rfd1 {[%clk 00:02:17]}
{[%emt 00:03:58]} Qb6 {[%clk 00:14:00]} {[%emt 00:01:13]} 16. Rab1 {[%clk
00:00:36]} {[%emt 00:02:00]} Qc7 {[%clk 00:13:28]} {[%emt 00:00:40]} 17. Bf4
{[%clk 00:00:13]} {[%emt 00:00:34]} Bd6 {[%clk 00:11:48]} {[%emt 00:01:51]} 18.
c4 {[%emt 00:00:13]} Rd8 {[%clk 00:09:58]} {[%emt 00:02:00]} 19. c5 {[%clk
00:00:17]} {[%emt 00:00:04]} Bxe5 {[%clk 00:09:18]} {[%emt 00:00:49]} 20. Bxe5
{[%clk 00:00:36]} {[%emt 00:00:02]} Qc8 {[%clk 00:08:30]} {[%emt 00:01:06]} 21.
Qg4 {[%clk 00:00:27]} {[%emt 00:00:21]} g6 {[%clk 00:06:51]} {[%emt 00:01:49]}
22. Qh4 {[%clk 00:00:13]} {[%emt 00:00:24]} Nd7 {[%clk 00:06:19]} {[%emt
00:00:42]} 23. Bf4 {[%clk 00:00:11]} {[%emt 00:00:12]} b6 {[%clk 00:03:58]}
{[%emt 00:02:26]} 24. Bg5 {[%clk 00:00:16]} {[%emt 00:00:10]} Re8 {[%clk
00:03:23]} {[%emt 00:00:44]} 25. cxb6 {[%clk 00:00:24]} {[%emt 00:00:02]} axb6
{[%clk 00:03:09]} {[%emt 00:00:25]} 26. Rd2 {[%clk 00:00:11]} {[%emt 00:00:22]}
Ra5 {[%clk 00:02:35]} {[%emt 00:00:43]} 27. Bf6 {[%emt 00:00:12]} 0-1



[ePGN "0.1;DGT LiveChess/2.2.6"]

[Event "MČR družstev mladších žáků 2024"]
[Site "Harrachov, Czech Republic"]
[Date "2024.06.14"]
[Round "1.5"]
[White "Lang Christian"]
[Black "Lackova Lucie"]
[Result "0-1"]
[TimeControl "25+10"]
[WhiteFideId "23771771"]
[BlackFideId "23731800"]
[WhiteElo "1242"]
[BlackElo "1601"]

1. e4 {[%clk 00:25:18]} {[%emt 00:00:01]} c6 {[%clk 00:25:19]} {[%emt
00:00:01]} 2. c4 {[%clk 00:25:20]} {[%emt 00:00:07]} d5 {[%clk 00:25:09]}
{[%emt 00:00:20]} 3. exd5 {[%clk 00:25:01]} {[%emt 00:00:30]} cxd5 {[%clk
00:25:18]} {[%emt 00:00:02]} 4. cxd5 {[%clk 00:25:07]} {[%emt 00:00:04]} Nf6
{[%clk 00:25:24]} {[%emt 00:00:04]} 5. Qa4+ {[%clk 00:25:07]} {[%emt 00:00:09]}
Bd7 {[%clk 00:24:49]} {[%emt 00:00:46]} 6. Qb3 {[%clk 00:25:03]} {[%emt
00:00:13]} Qc7 {[%clk 00:23:48]} {[%emt 00:01:11]} 7. Nc3 {[%clk 00:24:13]}
{[%emt 00:00:59]} e6 {[%clk 00:18:33]} {[%emt 00:05:27]} 8. Bc4 {[%clk
00:18:16]} {[%emt 00:06:06]} exd5 {[%clk 00:13:09]} {[%emt 00:05:34]} 9. Nxd5
{[%clk 00:14:21]} {[%emt 00:04:03]} Nxd5 {[%clk 00:12:31]} {[%emt 00:00:50]} 10.
Bxd5 {[%clk 00:13:07]} {[%emt 00:01:23]} Bc6 {[%clk 00:12:00]} {[%emt
00:00:41]} 11. Bxc6+ {[%clk 00:10:06]} {[%emt 00:03:12]} Nxc6 {[%clk 00:11:44]}
{[%emt 00:00:27]} 12. Nf3 {[%clk 00:09:05]} {[%emt 00:01:09]} Be7 {[%clk
00:07:20]} {[%emt 00:04:34]} 13. O-O {[%clk 00:07:37]} {[%emt 00:01:38]} O-O
{[%clk 00:07:02]} {[%emt 00:00:29]} 14. d3 {[%clk 00:06:25]} {[%emt 00:01:20]}
Bf6 {[%clk 00:05:00]} {[%emt 00:02:13]} 15. Rd1 {[%clk 00:04:05]} {[%emt
00:02:30]} Rad8 {[%clk 00:04:40]} {[%emt 00:00:30]} 16. Bd2 {[%clk 00:03:36]}
{[%emt 00:00:38]} Rfe8 {[%clk 00:03:11]} {[%emt 00:01:40]} 17. Bc3 {[%clk
00:03:02]} {[%emt 00:00:44]} Bxc3 {[%clk 00:02:34]} {[%emt 00:00:47]} 18. bxc3
{[%clk 00:02:34]} {[%emt 00:00:39]} Na5 {[%clk 00:02:18]} {[%emt 00:00:26]} 19.
Qa3 {[%clk 00:02:04]} {[%emt 00:00:38]} Rc8 {[%clk 00:01:49]} {[%emt 00:00:41]}
20. c4 {[%clk 00:01:29]} {[%emt 00:00:45]} Red8 {[%clk 00:01:36]} {[%emt
00:00:25]} 21. Rd2 {[%clk 00:01:09]} {[%emt 00:00:30]} Nc6 {[%clk 00:01:35]}
{[%emt 00:00:10]} 22. Qc3 {[%clk 00:00:56]} {[%emt 00:00:21]} Qd6 {[%clk
00:00:53]} {[%emt 00:00:53]} 23. Rb1 {[%clk 00:00:35]} {[%emt 00:00:31]} b6
{[%clk 00:00:58]} {[%emt 00:00:06]} 24. Rb5 {[%clk 00:00:27]} {[%emt 00:00:18]}
Qe7 {[%clk 00:00:25]} {[%emt 00:00:42]} 25. h3 {[%clk 00:00:17]} {[%emt
00:00:20]} f6 {[%clk 00:00:33]} {[%emt 00:00:02]} 26. Qc2 {[%clk 00:00:13]}
{[%emt 00:00:15]} Na5 {[%clk 00:00:26]} {[%emt 00:00:17]} 27. Re2 {[%clk
00:00:11]} {[%emt 00:00:12]} Qd7 {[%clk 00:00:30]} {[%emt 00:00:06]} 28. Rb1
{[%clk 00:00:13]} {[%emt 00:00:05]} Nc6 {[%clk 00:00:37]} {[%emt 00:00:06]} 29.
Rbe1 {[%clk 00:00:12]} {[%emt 00:00:10]} Nb4 {[%clk 00:00:38]} {[%emt
00:00:09]} 30. Qb3 {[%clk 00:00:11]} {[%emt 00:00:10]} Nc6 {[%clk 00:00:36]}
{[%emt 00:00:13]} 31. Rd1 {[%clk 00:00:13]} {[%emt 00:00:09]} Na5 {[%clk
00:00:41]} {[%emt 00:00:05]} 32. Qc2 {[%emt 00:00:12]} 0-1



[ePGN "0.1;DGT LiveChess/2.2.6"]

[Event "MČR družstev mladších žáků 2024"]
[Site "Harrachov, Czech Republic"]
[Date "2024.06.14"]
[Round "1.7"]
[White "Zrust Lukas"]
[Black "Macharacek Jakub"]
[Result "0-1"]
[TimeControl "25+10"]
[WhiteFideId "23736666"]
[BlackFideId "23766697"]
[WhiteElo "1742"]
[BlackElo "1385"]

1. d4 {[%emt 00:00:02]} d5 {[%emt 00:00:01]} 2. Nf3 {[%clk 00:25:12]} {[%emt
00:00:03]} e6 {[%clk 00:25:19]} {[%emt 00:00:03]} 3. g3 {[%clk 00:25:20]}
{[%emt 00:00:01]} Nf6 {[%clk 00:25:27]} {[%emt 00:00:02]} 4. Bg2 {[%clk
00:25:28]} {[%emt 00:00:03]} Bd6 {[%clk 00:25:34]} {[%emt 00:00:02]} 5. O-O
{[%clk 00:25:32]} {[%emt 00:00:06]} O-O {[%clk 00:25:41]} {[%emt 00:00:03]} 6.
b3 {[%clk 00:25:31]} {[%emt 00:00:11]} Nbd7 {[%clk 00:25:40]} {[%emt 00:00:11]}
7. Bb2 {[%clk 00:25:39]} {[%emt 00:00:02]} b6 {[%clk 00:25:45]} {[%emt
00:00:06]} 8. Nbd2 {[%clk 00:25:44]} {[%emt 00:00:04]} Bb7 {[%clk 00:25:51]}
{[%emt 00:00:04]} 9. Rc1 {[%clk 00:24:25]} {[%emt 00:01:28]} c5 {[%clk
00:25:03]} {[%emt 00:00:58]} 10. c4 {[%clk 00:23:46]} {[%emt 00:00:49]} Qe7
{[%clk 00:24:21]} {[%emt 00:00:52]} 11. e3 {[%clk 00:19:26]} {[%emt 00:04:30]}
Rac8 {[%clk 00:23:29]} {[%emt 00:01:02]} 12. Ne5 {[%clk 00:18:00]} {[%emt
00:01:36]} Rfe8 {[%clk 00:22:03]} {[%emt 00:01:36]} 13. Qe2 {[%clk 00:15:05]}
{[%emt 00:03:05]} Nf8 {[%clk 00:20:07]} {[%emt 00:02:06]} 14. Rfd1 {[%clk
00:13:23]} {[%emt 00:01:53]} Ng6 {[%clk 00:19:19]} {[%emt 00:00:58]} 15. Nxg6
{[%clk 00:11:37]} {[%emt 00:01:57]} hxg6 {[%clk 00:19:14]} {[%emt 00:00:15]} 16.
cxd5 {[%clk 00:10:50]} {[%emt 00:00:57]} exd5 {[%clk 00:18:49]} {[%emt
00:00:35]} 17. Nf3 {[%clk 00:10:17]} {[%emt 00:00:43]} Qd7 {[%clk 00:15:32]}
{[%emt 00:03:27]} 18. Ne5 {[%clk 00:06:56]} {[%emt 00:03:32]} Qf5 {[%clk
00:14:27]} {[%emt 00:01:14]} 19. Nf3 {[%clk 00:04:29]} {[%emt 00:02:37]} Ne4
{[%clk 00:10:49]} {[%emt 00:03:48]} 20. dxc5 {[%clk 00:03:57]} {[%emt
00:00:41]} Bxc5 {[%clk 00:10:42]} {[%emt 00:00:18]} 21. Nd4 {[%clk 00:02:32]}
{[%emt 00:01:36]} Ba6 {[%clk 00:07:33]} {[%emt 00:03:19]} 22. Qf3 {[%clk
00:01:12]} {[%emt 00:01:30]} Qxf3 {[%clk 00:07:30]} {[%emt 00:00:13]} 23. Nxf3
{[%clk 00:01:16]} {[%emt 00:00:07]} Nxf2 {[%clk 00:06:07]} {[%emt 00:01:33]} 24.
Rxd5 {[%clk 00:00:36]} {[%emt 00:00:50]} Ng4 {[%clk 00:04:47]} {[%emt
00:01:30]} 25. Kh1 {[%clk 00:00:15]} {[%emt 00:00:32]} Nxe3 {[%clk 00:04:38]}
{[%emt 00:00:18]} 26. Rd2 {[%clk 00:00:18]} {[%emt 00:00:07]} Bb7 {[%clk
00:03:44]} {[%emt 00:01:05]} 27. Nh4 {[%clk 00:00:16]} {[%emt 00:00:12]} Nxg2
{[%clk 00:03:30]} {[%emt 00:00:24]} 28. Nxg2 {[%clk 00:00:24]} {[%emt
00:00:01]} Rcd8 {[%clk 00:03:21]} {[%emt 00:00:19]} 29. Rxd8 {[%clk 00:00:22]}
{[%emt 00:00:13]} Rxd8 {[%clk 00:03:30]} 30. Bc3 {[%clk 00:00:19]} {[%emt
00:00:14]} Re8 {[%clk 00:03:16]} {[%emt 00:00:24]} 31. Re1 {[%clk 00:00:28]}
{[%emt 00:00:01]} Rxe1+ {[%clk 00:03:23]} {[%emt 00:00:03]} 32. Bxe1 {[%clk
00:00:37]} {[%emt 00:00:01]} Kf8 {[%clk 00:03:32]} 33. h3 {[%clk 00:00:40]}
{[%emt 00:00:07]} Ke7 {[%emt 00:00:03]} 34. Kh2 Ke6 {[%clk 00:03:38]} {[%emt
00:00:09]} 35. Bc3 {[%clk 00:00:57]} {[%emt 00:00:03]} Bxg2 {[%clk 00:03:38]}
{[%emt 00:00:11]} 36. Kxg2 {[%clk 00:01:06]} {[%emt 00:00:01]} f6 {[%clk
00:03:45]} {[%emt 00:00:03]} 37. Kf3 {[%clk 00:01:14]} {[%emt 00:00:01]} Kf5
{[%clk 00:03:47]} {[%emt 00:00:07]} 38. h4 {[%clk 00:01:00]} {[%emt 00:00:25]}
Bd6 {[%clk 00:03:32]} {[%emt 00:00:25]} 39. g4+ {[%clk 00:00:59]} {[%emt
00:00:11]} Ke6 {[%clk 00:03:40]} {[%emt 00:00:03]} 40. g5 {[%clk 00:00:21]}
{[%emt 00:00:49]} Be5 {[%clk 00:03:41]} {[%emt 00:00:08]} 41. Bd2 {[%clk
00:00:28]} {[%emt 00:00:03]} Kf5 {[%clk 00:03:42]} {[%emt 00:00:09]} 42. Bc1
{[%clk 00:00:18]} {[%emt 00:00:20]} Bd6 {[%clk 00:03:21]} {[%emt 00:00:31]} 43.
Bd2 {[%clk 00:00:26]} {[%emt 00:00:03]} Be7 {[%clk 00:03:29]} {[%emt 00:00:02]}
44. gxf6 {[%clk 00:00:25]} {[%emt 00:00:11]} gxf6 {[%clk 00:03:32]} {[%emt
00:00:07]} 45. Be3 {[%clk 00:00:25]} {[%emt 00:00:10]} Bc5 {[%clk 00:03:34]}
{[%emt 00:00:08]} 46. Bd2 {[%clk 00:00:25]} {[%emt 00:00:10]} a6 {[%clk
00:03:17]} {[%emt 00:00:27]} 47. Bc1 {[%clk 00:00:25]} {[%emt 00:00:09]} b5
{[%clk 00:03:22]} {[%emt 00:00:05]} 48. Bd2 {[%clk 00:00:35]} {[%emt 00:00:01]}
Bd4 {[%clk 00:03:19]} {[%emt 00:00:13]} 49. Bc1 {[%clk 00:00:40]} {[%emt
00:00:05]} Bc3 {[%clk 00:02:55]} {[%emt 00:00:34]} 50. a4 {[%clk 00:00:46]}
{[%emt 00:00:04]} bxa4 {[%clk 00:02:58]} {[%emt 00:00:07]} 51. bxa4 {[%clk
00:00:55]} Be1 {[%clk 00:02:48]} {[%emt 00:00:19]} 52. h5 {[%clk 00:00:39]}
{[%emt 00:00:26]} gxh5 {[%clk 00:02:52]} {[%emt 00:00:06]} 53. Be3 {[%clk
00:00:47]} {[%emt 00:00:02]} h4 {[%clk 00:02:53]} {[%emt 00:00:09]} 54. Kg2
{[%clk 00:00:52]} {[%emt 00:00:05]} Kg4 {[%clk 00:02:58]} {[%emt 00:00:04]} 55.
Bd4 {[%clk 00:01:01]} {[%emt 00:00:02]} f5 {[%clk 00:03:06]} {[%emt 00:00:02]}
56. Be5 {[%clk 00:01:06]} {[%emt 00:00:05]} f4 {[%clk 00:03:09]} {[%emt
00:00:06]} 57. Bf6 {[%clk 00:01:13]} {[%emt 00:00:03]} f3+ {[%clk 00:03:06]}
{[%emt 00:00:13]} 58. Kf1 {[%clk 00:00:49]} {[%emt 00:00:34]} h3 {[%clk
00:02:42]} {[%emt 00:00:34]} 59. Be5 {[%clk 00:00:31]} {[%emt 00:00:28]} Bg3
{[%clk 00:02:50]} {[%emt 00:00:01]} 0-1



[ePGN "0.1;DGT LiveChess/2.2.6"]

[Event "MČR družstev mladších žáků 2024"]
[Site "Harrachov, Czech Republic"]
[Date "2024.06.14"]
[Round "1.8"]
[White "Vintr Otakar"]
[Black "Artamonov Mikhail"]
[Result "0-1"]
[TimeControl "25+10"]
[WhiteFideId "23748362"]
[BlackFideId "23732946"]
[WhiteElo "1204"]
[BlackElo "1515"]

1. e4 {[%clk 00:25:17]} {[%emt 00:00:02]} e6 {[%clk 00:25:19]} {[%emt
00:00:02]} 2. d4 {[%clk 00:25:25]} {[%emt 00:00:02]} d5 {[%clk 00:25:28]}
{[%emt 00:00:01]} 3. exd5 {[%clk 00:25:31]} {[%emt 00:00:04]} exd5 {[%clk
00:25:35]} {[%emt 00:00:02]} 4. Bd3 {[%clk 00:25:27]} {[%emt 00:00:14]} Bd6
{[%clk 00:25:22]} {[%emt 00:00:23]} 5. Nf3 {[%clk 00:25:34]} {[%emt 00:00:03]}
Bg4 {[%clk 00:24:54]} {[%emt 00:00:39]} 6. h3 {[%clk 00:25:32]} {[%emt
00:00:11]} Bh5 {[%clk 00:24:43]} {[%emt 00:00:21]} 7. Qe2+ {[%clk 00:25:10]}
{[%emt 00:00:33]} Ne7 {[%clk 00:24:41]} {[%emt 00:00:11]} 8. Nc3 {[%clk
00:25:03]} {[%emt 00:00:17]} c6 {[%clk 00:24:00]} {[%emt 00:00:52]} 9. Be3
{[%clk 00:24:36]} {[%emt 00:00:37]} Nd7 {[%clk 00:22:49]} {[%emt 00:01:21]} 10.
g4 {[%clk 00:24:36]} {[%emt 00:00:10]} Bg6 {[%clk 00:22:10]} {[%emt 00:00:49]}
11. O-O-O {[%clk 00:24:33]} {[%emt 00:00:13]} Qc7 {[%clk 00:20:48]} {[%emt
00:01:30]} 12. Nh4 {[%clk 00:23:44]} {[%emt 00:01:00]} O-O-O {[%clk 00:19:00]}
{[%emt 00:01:58]} 13. Nxg6 {[%clk 00:23:44]} {[%emt 00:00:11]} Nxg6 {[%clk
00:19:08]} {[%emt 00:00:02]} 14. Bxg6 {[%clk 00:23:47]} {[%emt 00:00:06]} fxg6
{[%clk 00:18:48]} {[%emt 00:00:31]} 15. Rhf1 {[%clk 00:23:17]} {[%emt
00:00:39]} Rde8 {[%clk 00:18:53]} {[%emt 00:00:06]} 16. Qd2 {[%clk 00:23:08]}
{[%emt 00:00:19]} Rhf8 {[%clk 00:18:36]} {[%emt 00:00:27]} 17. Rde1 {[%clk
00:22:23]} {[%emt 00:00:55]} Rf3 {[%clk 00:16:40]} {[%emt 00:02:06]} 18. Rh1
{[%clk 00:20:50]} {[%emt 00:01:43]} Ref8 {[%clk 00:16:22]} {[%emt 00:00:27]} 19.
Ne2 {[%clk 00:19:25]} {[%emt 00:01:36]} Nb6 {[%clk 00:16:03]} {[%emt 00:00:28]}
20. Ng1 {[%clk 00:13:17]} {[%emt 00:06:19]} R3f7 {[%clk 00:15:41]} {[%emt
00:00:31]} 21. b3 {[%clk 00:10:43]} {[%emt 00:02:44]} Nd7 {[%clk 00:15:22]}
{[%emt 00:00:29]} 22. Ne2 {[%clk 00:10:24]} {[%emt 00:00:30]} Re8 {[%clk
00:14:34]} {[%emt 00:00:58]} 23. Ref1 {[%clk 00:09:49]} {[%emt 00:00:45]} Qb6
{[%clk 00:13:10]} {[%emt 00:01:34]} 24. Kb2 {[%clk 00:08:01]} {[%emt 00:01:58]}
Nf6 {[%clk 00:13:10]} {[%emt 00:00:11]} 25. f3 {[%clk 00:06:55]} {[%emt
00:01:16]} Rfe7 {[%clk 00:13:18]} {[%emt 00:00:02]} 26. Nf4 {[%clk 00:04:25]}
{[%emt 00:02:40]} Rxe3 {[%clk 00:13:24]} {[%emt 00:00:04]} 27. Ng2 {[%clk
00:04:25]} {[%emt 00:00:10]} Re2 {[%clk 00:13:32]} {[%emt 00:00:02]} 28. Qd1
{[%clk 00:02:41]} {[%emt 00:01:54]} Rxg2 {[%clk 00:13:39]} {[%emt 00:00:02]}
0-1



[ePGN "0.1;DGT LiveChess/2.2.6"]

[Event "MČR družstev mladších žáků 2024"]
[Site "Harrachov, Czech Republic"]
[Date "2024.06.14"]
[Round "1.9"]
[White "Kolar Edvard"]
[Black "Trcalkova Ema"]
[Result "1-0"]
[TimeControl "25+10"]
[WhiteFideId "23746238"]
[BlackFideId "23739681"]
[WhiteElo "1553"]
[BlackElo "1350"]

1. e4 {[%clk 00:25:18]} {[%emt 00:00:01]} e5 {[%clk 00:25:16]} {[%emt
00:00:05]} 2. Nf3 {[%clk 00:25:27]} Nc6 {[%clk 00:25:24]} {[%emt 00:00:02]} 3.
Bc4 {[%clk 00:25:36]} {[%emt 00:00:01]} Bc5 {[%clk 00:25:32]} {[%emt 00:00:03]}
4. b4 {[%clk 00:25:45]} {[%emt 00:00:01]} Bxb4 {[%clk 00:25:14]} {[%emt
00:00:27]} 5. c3 {[%clk 00:25:53]} {[%emt 00:00:02]} Ba5 {[%clk 00:22:26]}
{[%emt 00:02:59]} 6. d4 {[%clk 00:26:00]} {[%emt 00:00:03]} exd4 {[%clk
00:22:09]} {[%emt 00:00:27]} 7. O-O {[%clk 00:26:07]} {[%emt 00:00:02]} Nge7
{[%clk 00:16:11]} {[%emt 00:06:09]} 8. Ng5 {[%clk 00:26:12]} {[%emt 00:00:04]}
Ne5 {[%clk 00:15:08]} {[%emt 00:01:13]} 9. Nxf7 {[%clk 00:25:47]} {[%emt
00:00:34]} Nxf7 {[%clk 00:14:30]} {[%emt 00:00:48]} 10. Bxf7+ {[%clk 00:25:52]}
{[%emt 00:00:05]} Kxf7 {[%clk 00:11:51]} {[%emt 00:02:49]} 11. Qh5+ {[%clk
00:25:58]} {[%emt 00:00:02]} Ng6 {[%clk 00:10:26]} {[%emt 00:01:37]} 12. Qxa5
{[%clk 00:25:06]} {[%emt 00:01:00]} dxc3 {[%clk 00:08:57]} {[%emt 00:01:40]} 13.
Nxc3 {[%clk 00:25:07]} {[%emt 00:00:09]} d6 {[%clk 00:07:29]} {[%emt 00:01:39]}
14. Bb2 {[%clk 00:23:50]} {[%emt 00:01:25]} Be6 {[%clk 00:05:11]} {[%emt
00:02:28]} 15. f4 {[%clk 00:22:29]} {[%emt 00:01:30]} Bd7 {[%clk 00:03:00]}
{[%emt 00:02:22]} 16. e5 {[%clk 00:21:50]} {[%emt 00:00:49]} b6 {[%clk
00:02:17]} {[%emt 00:00:53]} 17. Qa3 {[%clk 00:21:11]} {[%emt 00:00:47]} dxe5
{[%clk 00:02:16]} {[%emt 00:00:14]} 18. fxe5+ {[%clk 00:21:16]} {[%emt
00:00:04]} Ke8 {[%clk 00:02:17]} {[%emt 00:00:05]} 19. Nd5 {[%clk 00:20:36]}
{[%emt 00:00:54]} c6 {[%clk 00:02:02]} {[%emt 00:00:27]} 20. Nf6+ {[%clk
00:19:35]} {[%emt 00:01:09]} gxf6 {[%clk 00:01:17]} {[%emt 00:00:55]} 21. exf6
{[%clk 00:19:43]} {[%emt 00:00:03]} Be6 {[%clk 00:00:16]} {[%emt 00:01:11]} 22.
f7+ {[%clk 00:19:25]} {[%emt 00:00:28]} Bxf7 {[%clk 00:00:25]} {[%emt
00:00:01]} 23. Bxh8 {[%clk 00:19:23]} {[%emt 00:00:12]} Nxh8 {[%clk 00:00:30]}
{[%emt 00:00:05]} 24. Rae1+ {[%clk 00:19:29]} {[%emt 00:00:03]} 1-0



[ePGN "0.1;DGT LiveChess/2.2.6"]